bitfinex-derivatives/quotes_BNBF0:USTF0_20241225
["timestamp","ask_amount","ask_price","bid_price","bid_amount"]
[1735089789675,0.88142028,700.43,699.64,0.2858613]
[1735089789868,0.27758011,700.46,699.64,0.2858613]
[1735089789869,0.88142028,700.42,699.64,0.2858613]
[1735089790073,0.88142028,700.41,699.64,0.2858613]
[1735089790272,0.88142028,700.4,699.64,0.2858613]
[1735089790475,0.88142028,700.39,699.64,0.2858613]
[1735089790676,0.88142028,700.38,699.64,0.2858613]
[1735089790972,0.88142028,700.37,699.64,0.2858613]
[1735089791176,0.88142028,700.36,699.64,0.2858613]
[1735089791376,0.27758011,700.46,699.64,0.2858613]
[1735089791577,0.8812557,700.45,699.64,0.2858613]
[1735089791772,0.8812557,700.44,699.64,0.2858613]
[1735089791973,0.88123353,700.43,699.64,0.2858613]
[1735089792176,0.27758011,700.46,699.64,0.2858613]
[1735089792377,0.88126718,700.45,699.64,0.2858613]
[1735089792676,0.27758011,700.46,699.64,0.2858613]
[1735089792873,0.88123438,700.45,699.64,0.2858613]
[1735089793077,0.88123438,700.44,699.64,0.2858613]
[1735089793272,0.27758011,700.46,699.64,0.2858613]
[1735089793471,0.88127836,700.45,699.64,0.2858613]
[1735089793675,0.88127836,700.44,699.64,0.2858613]
[1735089793977,0.88127836,700.43,699.64,0.2858613]
[1735089794176,0.88127836,700.42,699.64,0.2858613]
[1735089794379,0.88127836,700.41,699.64,0.2858613]
[1735089794577,0.88127836,700.4,699.64,0.2858613]
[1735089794777,0.27758011,700.46,699.64,0.2858613]
[1735089794972,0.88130443,700.45,699.64,0.2858613]
[1735089795177,0.88130443,700.44,699.64,0.2858613]
[1735089795378,0.88130443,700.43,699.64,0.2858613]
[1735089795678,0.88130443,700.42,699.64,0.2858613]
[1735089795976,0.88130443,700.41,699.64,0.2858613]
[1735089796169,0.88130443,700.4,699.64,0.2858613]
[1735089796370,0.88130443,700.39,699.64,0.2858613]
[1735089796576,0.88130443,700.38,699.64,0.2858613]
[1735089796777,0.88130443,700.37,699.64,0.2858613]
[1735089797077,0.27758011,700.46,699.64,0.2858613]
[1735089797581,0.88155591,700.45,699.64,0.2858613]
[1735089797777,0.88155591,700.44,699.64,0.2858613]
[1735089798082,0.88155591,700.43,699.64,0.2858613]
[1735089798282,0.88155591,700.42,699.64,0.2858613]
[1735089798476,0.88155591,700.41,699.64,0.2858613]
[1735089798680,0.88155591,700.4,699.64,0.2858613]
[1735089798881,0.88155591,700.39,699.64,0.2858613]
[1735089799079,0.88155591,700.38,699.64,0.2858613]
[1735089799281,0.88155591,700.37,699.64,0.2858613]
[1735089799581,0.27758011,700.46,699.64,0.2858613]
[1735089799780,0.88160031,700.45,699.64,0.2858613]
[1735089800078,0.88160031,700.44,699.64,0.2858613]
[1735089800277,0.88160031,700.43,699.64,0.2858613]
[1735089800476,0.88160031,700.42,699.64,0.2858613]
[1735089800679,0.88160031,700.41,699.64,0.2858613]
[1735089800880,0.88160031,700.4,699.64,0.2858613]
[1735089801079,0.88160031,700.39,699.64,0.2858613]
[1735089801277,0.27758011,700.46,699.64,0.2858613]
[1735089804688,0.88155785,700.45,699.64,0.2858613]
[1735089804885,0.27758011,700.46,699.64,0.2858613]
[1735089805082,0.88155764,700.45,699.64,0.2858613]
[1735089805288,0.27758011,700.46,699.64,0.2858613]
[1735089805588,0.88151464,700.45,699.64,0.2858613]
[1735089805889,0.27758011,700.46,699.64,0.2858613]
[1735089806084,0.88152015,700.45,699.64,0.2858613]
[1735089806289,0.88152015,700.44,699.64,0.2858613]
[1735089806587,0.88152015,700.43,699.64,0.2858613]
[1735089806787,0.88152015,700.42,699.64,0.2858613]
[1735089806982,0.27758011,700.46,699.64,0.2858613]
[1735089807188,0.88146775,700.45,699.64,0.2858613]
[1735089807383,0.88146775,700.44,699.64,0.2858613]
[1735089807588,0.88146775,700.43,699.64,0.2858613]
[1735089807788,0.88146775,700.42,699.64,0.2858613]
[1735089807985,0.27758011,700.46,699.64,0.2858613]
[1735089808183,0.88138828,700.45,699.64,0.2858613]
[1735089808385,0.88138828,700.44,699.64,0.2858613]
[1735089808582,0.88131208,700.43,699.64,0.2858613]
[1735089808786,0.88131208,700.42,699.64,0.2858613]
[1735089808983,0.88131208,700.41,699.64,0.2858613]
[1735089809184,0.88131208,700.4,699.64,0.2858613]
[1735089809387,0.88131208,700.39,699.64,0.2858613]
[1735089809586,0.88131208,700.38,699.64,0.2858613]
[1735089809787,0.88131208,700.37,699.64,0.2858613]
[1735089809984,0.88131208,700.36,699.64,0.2858613]
[1735089810282,0.27758011,700.46,699.64,0.2858613]
[1735089810687,0.88129871,700.45,699.64,0.2858613]
[1735089810887,0.88129871,700.44,699.64,0.2858613]
[1735089811087,0.88129871,700.43,699.64,0.2858613]
[1735089811287,0.88129871,700.42,699.64,0.2858613]
[1735089811488,0.88129871,700.41,699.64,0.2858613]
[1735089811689,0.88129871,700.4,699.64,0.2858613]
[1735089811884,0.88129871,700.39,699.64,0.2858613]
[1735089812087,0.88129871,700.38,699.64,0.2858613]
[1735089812287,0.27758011,700.46,699.64,0.2858613]
[1735089812584,0.88129434,700.45,699.64,0.2858613]
[1735089812789,0.88129434,700.44,699.64,0.2858613]
[1735089812991,0.88129434,700.43,699.64,0.2858613]
[1735089813292,0.27758011,700.46,699.64,0.2858613]
[1735089813593,0.88127083,700.45,699.64,0.2858613]
[1735089813789,0.88127083,700.44,699.64,0.2858613]
[1735089813989,0.27758011,700.46,699.64,0.2858613]
[1735089814293,0.88126726,700.45,699.64,0.2858613]
[1735089814590,0.88126726,700.44,699.64,0.2858613]
[1735089814785,0.88126726,700.43,699.64,0.2858613]
[1735089814992,0.88126726,700.42,699.64,0.2858613]
[1735089815192,0.27758011,700.46,699.64,0.2858613]
[1735089815392,0.88132806,700.45,699.64,0.2858613]
[1735089815592,0.88132806,700.44,699.64,0.2858613]
[1735089815793,0.27758011,700.46,699.64,0.2858613]
[1735089815994,0.8813409,700.45,699.64,0.2858613]
[1735089816193,0.88133454,700.44,699.64,0.2858613]
[1735089816395,0.27758011,700.46,699.64,0.2858613]
[1735089838815,0.88224629,700.45,699.64,0.2858613]
[1735089839016,0.88224629,700.44,699.64,0.2858613]
[1735089839209,0.88224629,700.43,699.64,0.2858613]
[1735089839409,0.88224629,700.42,699.64,0.2858613]
[1735089839611,0.88224629,700.41,699.64,0.2858613]
[1735089839815,0.88224629,700.4,699.64,0.2858613]
[1735089840049,0.88224629,700.39,699.64,0.2858613]
[1735089840246,0.88224629,700.38,699.64,0.2858613]
[1735089840434,0.88224629,700.37,699.64,0.2858613]
[1735089840626,0.88224629,700.36,699.64,0.2858613]
[1735089840848,0.27758011,700.46,699.64,0.2858613]
[1735089841047,0.88231002,700.45,699.64,0.2858613]
[1735089841247,0.88231002,700.44,699.64,0.2858613]
[1735089841443,0.27758011,700.46,699.64,0.2858613]
[1735089841745,0.88228928,700.45,699.64,0.2858613]
[1735089841948,0.88228928,700.44,699.64,0.2858613]
[1735089842144,0.88228928,700.43,699.64,0.2858613]
[1735089842345,0.88228928,700.42,699.64,0.2858613]
[1735089842554,0.88228928,700.41,699.64,0.2858613]
[1735089842752,0.88228928,700.4,699.64,0.2858613]
[1735089843049,0.88228928,700.39,699.64,0.2858613]
[1735089843353,0.27758011,700.46,699.64,0.2858613]
[1735089843743,0.88213138,700.45,699.64,0.2858613]
[1735089843945,0.88213138,700.44,699.64,0.2858613]
[1735089844150,0.88213138,700.43,699.64,0.2858613]
[1735089844343,0.27758011,700.46,699.64,0.2858613]
[1735089844344,0.88213138,700.42,699.64,0.2858613]
[1735089844546,0.88213138,700.41,699.64,0.2858613]
[1735089844750,0.88213138,700.4,699.64,0.2858613]
[1735089844954,0.88213138,700.39,699.64,0.2858613]
[1735089845246,0.88213138,700.38,699.64,0.2858613]
[1735089845452,0.8821355,700.37,699.64,0.2858613]
[1735089845752,0.27758011,700.46,699.64,0.2858613]
[1735089845953,0.88213358,700.45,699.64,0.2858613]
[1735089846150,0.88213358,700.44,699.64,0.2858613]
[1735089846346,0.27758011,700.46,699.64,0.2858613]
[1735089846347,0.88213358,700.43,699.64,0.2858613]
[1735089846650,0.88215355,700.42,699.64,0.2858613]
[1735089846844,0.88215355,700.41,699.64,0.2858613]
[1735089847047,0.88215355,700.4,699.64,0.2858613]
[1735089847248,0.88215355,700.39,699.64,0.2858613]
[1735089847452,0.88215355,700.38,699.64,0.2858613]
[1735089847652,0.27758011,700.46,699.64,0.2858613]
[1735089847852,0.88211244,700.45,699.64,0.2858613]
[1735089848049,0.88211244,700.44,699.64,0.2858613]
[1735089848350,0.88211244,700.43,699.64,0.2858613]
[1735089848555,0.88211244,700.42,699.64,0.2858613]
[1735089848754,0.88211244,700.41,699.64,0.2858613]
[1735089849054,0.88211244,700.4,699.64,0.2858613]
[1735089849251,0.86844119,700.39,699.64,0.2858613]
[1735089849448,0.27758011,700.46,699.64,0.2858613]
[1735089849651,0.8685061,700.45,699.64,0.2858613]
[1735089849854,0.8685061,700.44,699.64,0.2858613]
[1735089850056,0.8685061,700.43,699.64,0.2858613]
[1735089850354,0.8685061,700.42,699.64,0.2858613]
[1735089850556,0.8685061,700.41,699.64,0.2858613]
[1735089850854,0.8685061,700.4,699.64,0.2858613]
[1735089851057,0.8685061,700.39,699.64,0.2858613]
[1735089851251,0.8685061,700.38,699.64,0.2858613]
[1735089851549,0.8685061,700.37,699.64,0.2858613]
[1735089851750,0.8685061,700.36,699.64,0.2858613]
[1735089851952,0.8685061,700.35,699.64,0.2858613]
[1735089852155,0.27758011,700.46,699.64,0.2858613]
[1735089852156,0.8685061,700.34,699.64,0.2858613]
[1735089852453,0.86753412,700.33,699.64,0.2858613]
[1735089852648,0.86753412,700.32,699.64,0.2858613]
[1735089852851,0.86753412,700.31,699.64,0.2858613]
[1735089853050,0.86753412,700.3,699.64,0.2858613]
[1735089853249,0.86753412,700.29,699.64,0.2858613]
[1735089853454,0.86753412,700.28,699.64,0.2858613]
[1735089853652,0.86753412,700.27,699.64,0.2858613]
[1735089853857,0.86753412,700.26,699.64,0.2858613]
[1735089854052,0.86753412,700.25,699.64,0.2858613]
[1735089854358,0.27758011,700.46,699.64,0.2858613]
[1735089854955,0.86716412,700.45,699.64,0.2858613]
[1735089855156,0.86716412,700.44,699.64,0.2858613]
[1735089855459,0.27758011,700.46,699.64,0.2858613]
[1735089855460,0.86716412,700.43,699.64,0.2858613]
[1735089855654,0.27758011,700.46,699.64,0.2858613]
[1735089855957,0.8670064,700.45,699.64,0.2858613]
[1735089856157,0.8670064,700.44,699.64,0.2858613]
[1735089856355,0.8670064,700.43,699.64,0.2858613]
[1735089856551,0.8670064,700.42,699.64,0.2858613]
[1735089856762,0.8670064,700.41,699.64,0.2858613]
[1735089857058,0.8670064,700.4,699.64,0.2858613]
[1735089857256,0.8670064,700.39,699.64,0.2858613]
[1735089857456,0.8670064,700.38,699.64,0.2858613]
[1735089857756,0.8670064,700.37,699.64,0.2858613]
[1735089857947,0.8670064,700.36,699.64,0.2858613]
[1735089858159,0.8670064,700.35,699.64,0.2858613]
[1735089858459,0.27758011,700.46,699.64,0.2858613]
[1735089858761,0.86661724,700.45,699.64,0.2858613]
[1735089858965,0.86661724,700.44,699.64,0.2858613]
[1735089859156,0.86661724,700.43,699.64,0.2858613]
[1735089859353,0.27758011,700.46,699.64,0.2858613]
[1735089859354,0.86664819,700.42,699.64,0.2858613]
[1735089859549,0.86664819,700.41,699.64,0.2858613]
[1735089859851,0.86664819,700.4,699.64,0.2858613]
[1735089860052,0.86664819,700.39,699.64,0.2858613]
[1735089860246,0.86664819,700.38,699.64,0.2858613]
[1735089860444,0.86664819,700.37,699.64,0.2858613]
[1735089860641,0.86664819,700.36,699.64,0.2858613]
[1735089860843,0.86664819,700.35,699.64,0.2858613]
[1735089861048,0.86664819,700.34,699.64,0.2858613]
[1735089861243,0.86648516,700.33,699.64,0.2858613]
[1735089861441,0.86648516,700.32,699.64,0.2858613]
[1735089861633,0.86648516,700.31,699.64,0.2858613]
[1735089861827,0.86644778,700.3,699.64,0.2858613]
[1735089862030,0.86644778,700.29,699.64,0.2858613]
[1735089862332,0.27758011,700.46,699.64,0.2858613]
[1735089862533,0.8663883,700.45,699.64,0.2858613]
[1735089862831,0.8663883,700.44,699.64,0.2858613]
[1735089863025,0.8663883,700.43,699.64,0.2858613]
[1735089863230,0.8663883,700.42,699.64,0.2858613]
[1735089863431,0.8663883,700.41,699.64,0.2858613]
[1735089863631,0.8663883,700.4,699.64,0.2858613]
[1735089863825,0.8663883,700.39,699.64,0.2858613]
[1735089864028,0.8663883,700.38,699.64,0.2858613]
[1735089864229,0.8663883,700.37,699.64,0.2858613]
[1735089864531,0.8663883,700.36,699.64,0.2858613]
[1735089864733,0.8663883,700.35,699.64,0.2858613]
[1735089865031,0.8663883,700.34,699.64,0.2858613]
[1735089865226,0.27758011,700.46,699.64,0.2858613]
[1735089865529,0.86620026,700.45,699.64,0.2858613]
[1735089865729,0.86620026,700.44,699.64,0.2858613]
[1735089865930,0.27758011,700.46,699.64,0.2858613]
[1735089868237,0.86615173,700.45,699.64,0.2858613]
[1735089868437,0.27758011,700.46,699.64,0.2858613]
[1735089868737,0.86616346,700.45,699.64,0.2858613]
[1735089868935,0.27758011,700.46,699.64,0.2858613]
[1735089869137,0.866162,700.45,699.64,0.2858613]
[1735089869337,0.27758011,700.46,699.64,0.2858613]
[1735089873941,0.86619207,700.45,699.64,0.2858613]
[1735089874135,0.86619207,700.44,699.64,0.2858613]
[1735089874337,0.86621137,700.43,699.64,0.2858613]
[1735089874639,0.86621137,700.42,699.64,0.2858613]
[1735089874841,0.86621137,700.41,699.64,0.2858613]
[1735089875041,0.86621137,700.4,699.64,0.2858613]
[1735089875339,0.27758011,700.46,699.64,0.2858613]
[1735089875540,0.86624873,700.45,699.64,0.2858613]
[1735089875741,0.86624873,700.44,699.64,0.2858613]
[1735089875938,0.86624873,700.43,699.64,0.2858613]
[1735089876139,0.86624873,700.42,699.64,0.2858613]
[1735089876335,0.86624873,700.41,699.64,0.2858613]
[1735089876641,0.86625418,700.4,699.64,0.2858613]
[1735089876841,0.86625418,700.39,699.64,0.2858613]
[1735089877043,0.86625418,700.38,699.64,0.2858613]
[1735089877339,0.86630496,700.37,699.64,0.2858613]
[1735089877543,0.86630496,700.36,699.64,0.2858613]
[1735089877744,0.27758011,700.46,699.64,0.2858613]
[1735089877745,0.86630121,700.35,699.64,0.2858613]
[1735089878046,0.86630121,700.34,699.64,0.2858613]
[1735089878360,0.86630121,700.33,699.64,0.2858613]
[1735089878544,0.86630121,700.32,699.64,0.2858613]
[1735089878743,0.27758011,700.46,699.64,0.2858613]
[1735089879044,0.86630846,700.45,699.64,0.2858613]
[1735089879243,0.86630846,700.44,699.64,0.2858613]
[1735089879446,0.86630846,700.43,699.64,0.2858613]
[1735089879744,0.86630846,700.42,699.64,0.2858613]
[1735089879944,0.86630846,700.41,699.64,0.2858613]
[1735089880144,0.86630846,700.4,699.64,0.2858613]
[1735089880345,0.86637205,700.39,699.64,0.2858613]
[1735089880541,0.86637205,700.38,699.64,0.2858613]
[1735089880745,0.86637205,700.37,699.64,0.2858613]
[1735089880938,0.86637205,700.36,699.64,0.2858613]
[1735089881142,0.86637205,700.35,699.64,0.2858613]
[1735089881347,0.27758011,700.46,699.64,0.2858613]
[1735089881644,0.86638917,700.45,699.64,0.2858613]
[1735089881845,0.86638917,700.44,699.64,0.2858613]
[1735089882044,0.86638917,700.43,699.64,0.2858613]
[1735089882241,0.86638917,700.42,699.64,0.2858613]
[1735089882446,0.86638917,700.41,699.64,0.2858613]
[1735089882642,0.86638917,700.4,699.64,0.2858613]
[1735089882839,0.86638917,700.39,699.64,0.2858613]
[1735089883039,0.86638917,700.38,699.64,0.2858613]
[1735089883339,0.27758011,700.46,699.64,0.2858613]
[1735089883540,0.86649823,700.45,699.64,0.2858613]
[1735089883742,0.86649823,700.44,699.64,0.2858613]
[1735089883946,0.86649823,700.43,699.64,0.2858613]
[1735089884146,0.86649823,700.42,699.64,0.2858613]
[1735089884342,0.86649823,700.41,699.64,0.2858613]
[1735089884641,0.86649823,700.4,699.64,0.2858613]
[1735089884844,0.86649823,700.39,699.64,0.2858613]
[1735089885044,0.86649823,700.38,699.64,0.2858613]
[1735089885240,0.86649823,700.37,699.64,0.2858613]
[1735089885445,0.27758011,700.46,699.64,0.2858613]
[1735089885643,0.86664069,700.45,699.64,0.2858613]
[1735089885844,0.86664069,700.44,699.64,0.2858613]
[1735089886041,0.86664069,700.43,699.64,0.2858613]
[1735089886247,0.86664069,700.42,699.64,0.2858613]
[1735089886446,0.8667136,700.41,699.64,0.2858613]
[1735089886641,0.8667136,700.4,699.64,0.2858613]
[1735089886845,0.27758011,700.46,699.64,0.2858613]
[1735089887045,0.86671032,700.45,699.64,0.2858613]
[1735089887242,0.86671032,700.44,699.64,0.2858613]
[1735089887441,0.86671032,700.43,699.64,0.2858613]
[1735089887645,0.86671032,700.42,699.64,0.2858613]
[1735089887846,0.86671032,700.41,699.64,0.2858613]
[1735089888041,0.86671032,700.4,699.64,0.2858613]
[1735089888252,0.86671032,700.39,699.64,0.2858613]
[1735089888447,0.86671032,700.38,699.64,0.2858613]
[1735089888640,0.86671032,700.37,699.64,0.2858613]
[1735089888840,0.27758011,700.46,699.64,0.2858613]
[1735089889046,0.86686179,700.45,699.64,0.2858613]
[1735089889245,0.86686179,700.44,699.64,0.2858613]
[1735089889448,0.86686179,700.43,699.64,0.2858613]
[1735089889650,0.86686179,700.42,699.64,0.2858613]
[1735089889849,0.86686179,700.41,699.64,0.2858613]
[1735089890148,0.86686179,700.4,699.64,0.2858613]
[1735089890349,0.86686179,700.39,699.64,0.2858613]
[1735089890649,0.86686179,700.38,699.64,0.2858613]
[1735089890842,0.86686179,700.37,699.64,0.2858613]
[1735089891041,0.86686179,700.36,699.64,0.2858613]
[1735089891248,0.27758011,700.46,699.64,0.2858613]
[1735089891249,0.86686179,700.35,699.64,0.2858613]
[1735089891448,0.86686179,700.34,699.64,0.2858613]
[1735089891646,0.27758011,700.46,699.64,0.2858613]
[1735089891647,0.86686179,700.33,699.64,0.2858613]
[1735089891849,0.86686179,700.32,699.64,0.2858613]
[1735089892147,0.86686179,700.31,699.64,0.2858613]
[1735089892343,0.27758011,700.46,699.64,0.2858613]
[1735089892541,0.86717746,700.45,699.64,0.2858613]
[1735089892748,0.86717746,700.44,699.64,0.2858613]
[1735089892942,0.86717746,700.43,699.64,0.2858613]
[1735089893146,0.86717746,700.42,699.64,0.2858613]
[1735089893449,0.86717746,700.41,699.64,0.2858613]
[1735089893643,0.86717746,700.4,699.64,0.2858613]
[1735089893843,0.86717746,700.39,699.64,0.2858613]
[1735089894048,0.86717746,700.38,699.64,0.2858613]
[1735089894246,0.86717746,700.37,699.64,0.2858613]
[1735089894442,0.86717746,700.36,699.64,0.2858613]
[1735089894642,0.86717746,700.35,699.64,0.2858613]
[1735089894845,0.86717746,700.34,699.64,0.2858613]
[1735089895045,0.86717746,700.33,699.64,0.2858613]
[1735089895350,0.27758011,700.46,699.64,0.2858613]
[1735089895351,0.86717746,700.32,699.64,0.2858613]
[1735089895550,0.86746215,700.31,699.64,0.2858613]
[1735089895851,0.27758011,700.46,699.64,0.2858613]
[1735089896047,0.86745662,700.45,699.64,0.2858613]
[1735089896245,0.86745662,700.44,699.64,0.2858613]
[1735089896447,0.86745662,700.43,699.64,0.2858613]
[1735089896646,0.86745662,700.42,699.64,0.2858613]
[1735089896950,0.86745662,700.41,699.64,0.2858613]
[1735089897149,0.86745662,700.4,699.64,0.2858613]
[1735089897349,0.86745662,700.39,699.64,0.2858613]
[1735089897546,0.86745662,700.38,699.64,0.2858613]
[1735089897749,0.86745662,700.37,699.64,0.2858613]
[1735089897944,0.86745662,700.36,699.64,0.2858613]
[1735089898152,0.86745662,700.35,699.64,0.2858613]
[1735089898354,0.86745662,700.34,699.64,0.2858613]
[1735089898549,0.86745662,700.33,699.64,0.2858613]
[1735089898748,0.27758011,700.46,699.64,0.2858613]
[1735089898749,0.86745662,700.32,699.64,0.2858613]
[1735089898951,0.86745662,700.31,699.64,0.2858613]
[1735089899148,0.27758011,700.46,699.64,0.2858613]
[1735089899350,0.86769755,700.45,699.64,0.2858613]
[1735089899545,0.86769755,700.44,699.64,0.2858613]
[1735089899751,0.86769755,700.43,699.64,0.2858613]
[1735089899950,0.86769755,700.42,699.64,0.2858613]
[1735089900150,0.86769755,700.41,699.64,0.2858613]
[1735089900351,0.86769755,700.4,699.64,0.2858613]
[1735089900550,0.86769755,700.39,699.64,0.2858613]
[1735089900746,0.86769755,700.38,699.64,0.2858613]
[1735089901053,0.86773239,700.37,699.64,0.2858613]
[1735089901246,0.86773239,700.36,699.64,0.2858613]
[1735089901448,0.27758011,700.46,699.64,0.2858613]
[1735089901449,0.86773239,700.35,699.64,0.2858613]
[1735089901749,0.86773239,700.34,699.64,0.2858613]
[1735089901945,0.86773239,700.33,699.64,0.2858613]
[1735089902145,0.86773239,700.32,699.64,0.2858613]
[1735089902347,0.86773239,700.31,699.64,0.2858613]
[1735089902546,0.86773239,700.3,699.64,0.2858613]
[1735089902749,0.27758011,700.46,699.64,0.2858613]
[1735089902946,0.8677371,700.45,699.64,0.2858613]
[1735089903151,0.8677371,700.44,699.64,0.2858613]
[1735089903352,0.27758011,700.46,699.64,0.2858613]
[1735089903353,0.8677371,700.43,699.64,0.2858613]
[1735089903549,0.8677371,700.42,699.64,0.2858613]
[1735089903747,0.86779419,700.41,699.64,0.2858613]
[1735089903953,0.86779419,700.4,699.64,0.2858613]
[1735089904151,0.27758011,700.46,699.64,0.2858613]
[1735089904356,0.86779306,700.45,699.64,0.2858613]
[1735089904557,0.86779306,700.44,699.64,0.2858613]
[1735089904756,0.86779306,700.43,699.64,0.2858613]
[1735089904956,0.86779306,700.42,699.64,0.2858613]
[1735089905151,0.86779306,700.41,699.64,0.2858613]
[1735089905351,0.86779306,700.4,699.64,0.2858613]
[1735089905553,0.86779306,700.39,699.64,0.2858613]
[1735089905751,0.86779306,700.38,699.64,0.2858613]
[1735089906056,0.86779306,700.37,699.64,0.2858613]
[1735089906251,0.86779306,700.36,699.64,0.2858613]
[1735089906449,0.86779306,700.35,699.64,0.2858613]
[1735089906653,0.86779306,700.34,699.64,0.2858613]
[1735089906858,0.86793315,700.33,699.64,0.2858613]
[1735089907156,0.86793315,700.32,699.64,0.2858613]
[1735089907355,0.86793315,700.31,699.64,0.2858613]
[1735089907556,0.86793315,700.3,699.64,0.2858613]
[1735089907750,0.27758011,700.46,699.64,0.2858613]
[1735089907955,0.86797039,700.45,699.64,0.2858613]
[1735089908151,0.86797039,700.44,699.64,0.2858613]
[1735089908457,0.86797039,700.43,699.64,0.2858613]
[1735089908651,0.86797039,700.42,699.64,0.2858613]
[1735089908957,0.86797039,700.41,699.64,0.2858613]
[1735089909256,0.86797039,700.4,699.64,0.2858613]
[1735089909450,0.86797039,700.39,699.64,0.2858613]
[1735089909651,0.86797039,700.38,699.64,0.2858613]
[1735089909957,0.86820124,700.37,699.64,0.2858613]
[1735089910150,0.86820124,700.36,699.64,0.2858613]
[1735089910355,0.86820124,700.35,699.64,0.2858613]
[1735089910552,0.86820124,700.34,699.64,0.2858613]
[1735089910852,0.86820124,700.33,699.64,0.2858613]
[1735089911055,0.86820124,700.32,699.64,0.2858613]
[1735089911256,0.86820124,700.31,699.64,0.2858613]
[1735089911455,0.86820124,700.3,699.64,0.2858613]
[1735089911655,0.86820124,700.29,699.64,0.2858613]
[1735089911857,0.86820124,700.28,699.64,0.2858613]
[1735089912059,0.86820124,700.27,699.64,0.2858613]
[1735089912258,0.86820124,700.26,699.64,0.2858613]
[1735089912458,0.86820124,700.25,699.64,0.2858613]
[1735089912658,0.27758011,700.46,699.64,0.2858613]
[1735089912857,0.86865104,700.45,699.64,0.2858613]
[1735089913056,0.86865104,700.44,699.64,0.2858613]
[1735089913256,0.86865104,700.43,699.64,0.2858613]
[1735089913453,0.86870783,700.42,699.64,0.2858613]
[1735089913654,0.86870783,700.41,699.64,0.2858613]
[1735089913956,0.86870783,700.4,699.64,0.2858613]
[1735089914258,0.86870783,700.39,699.64,0.2858613]
[1735089914459,0.86870783,700.38,699.64,0.2858613]
[1735089914660,0.86870783,700.37,699.64,0.2858613]
[1735089914855,0.86870783,700.36,699.64,0.2858613]
[1735089915161,0.86870783,700.35,699.64,0.2858613]
[1735089915361,0.86870783,700.34,699.64,0.2858613]
[1735089915556,0.86870783,700.33,699.64,0.2858613]
[1735089915758,0.86870783,700.32,699.64,0.2858613]
[1735089915952,0.86880035,700.31,699.64,0.2858613]
[1735089916160,0.86880035,700.3,699.64,0.2858613]
[1735089916459,0.86880035,700.29,699.64,0.2858613]
[1735089916659,0.86880035,700.28,699.64,0.2858613]
[1735089916860,0.86880035,700.27,699.64,0.2858613]
[1735089917161,0.27758011,700.46,699.64,0.2858613]
[1735089917462,0.86885698,700.45,699.64,0.2858613]
[1735089917663,0.86885698,700.44,699.64,0.2858613]
[1735089917961,0.86885698,700.43,699.64,0.2858613]
[1735089918260,0.86885698,700.42,699.64,0.2858613]
[1735089918458,0.86885698,700.41,699.64,0.2858613]
[1735089918655,0.86885698,700.4,699.64,0.2858613]
[1735089918954,0.27758011,700.46,699.64,0.2858613]
[1735089919158,0.8689297,700.45,699.64,0.2858613]
[1735089919358,0.8689297,700.44,699.64,0.2858613]
[1735089919559,0.8689297,700.43,699.64,0.2858613]
[1735089919760,0.8689297,700.42,699.64,0.2858613]
[1735089920058,0.8689297,700.41,699.64,0.2858613]
[1735089920261,0.8689297,700.4,699.64,0.2858613]
[1735089920459,0.8689297,700.39,699.64,0.2858613]
[1735089920660,0.27758011,700.46,699.64,0.2858613]
[1735089920661,0.8689297,700.38,699.64,0.2858613]
[1735089920855,0.8689297,700.37,699.64,0.2858613]
[1735089921059,0.8689297,700.36,699.64,0.2858613]
[1735089921262,0.27758011,700.46,699.64,0.2858613]
[1735089921263,0.8689297,700.35,699.64,0.2858613]
[1735089921458,0.8689297,700.34,699.64,0.2858613]
[1735089921659,0.8689297,700.33,699.64,0.2858613]
[1735089921863,0.8689297,700.32,699.64,0.2858613]
[1735089922064,0.27758011,700.46,699.64,0.2858613]
[1735089922364,0.86900006,700.45,699.64,0.2858613]
[1735089922565,0.86898697,700.44,699.64,0.2858613]
[1735089922864,0.86898697,700.43,699.64,0.2858613]
[1735089923063,0.86898697,700.42,699.64,0.2858613]
[1735089923263,0.86898697,700.41,699.64,0.2858613]
[1735089923464,0.86898697,700.4,699.64,0.2858613]
[1735089923660,0.86902742,700.39,699.64,0.2858613]
[1735089923866,0.86902742,700.38,699.64,0.2858613]
[1735089924066,0.86902742,700.37,699.64,0.2858613]
[1735089924264,0.86902742,700.36,699.64,0.2858613]
[1735089924460,0.86902742,700.35,699.64,0.2858613]
[1735089924660,0.86902742,700.34,699.64,0.2858613]
[1735089924962,0.86902742,700.33,699.64,0.2858613]
[1735089925160,0.86914533,700.32,699.64,0.2858613]
[1735089925363,0.86914533,700.31,699.64,0.2858613]
[1735089925560,0.27758011,700.46,699.64,0.2858613]
[1735089925561,0.86914533,700.3,699.64,0.2858613]
[1735089925861,0.86914533,700.29,699.64,0.2858613]
[1735089926168,0.86914533,700.28,699.64,0.2858613]
[1735089926368,0.86914533,700.27,699.64,0.2858613]
[1735089926664,0.86914533,700.26,699.64,0.2858613]
[1735089926861,0.27758011,700.46,699.64,0.2858613]
[1735089927062,0.86915252,700.45,699.64,0.2858613]
[1735089927264,0.27758011,700.46,699.64,0.2858613]
[1735089927265,0.86915252,700.44,699.64,0.2858613]
[1735089927462,0.86915252,700.43,699.64,0.2858613]
[1735089927768,0.86915252,700.42,699.64,0.2858613]
[1735089928068,0.27758011,700.46,699.64,0.2858613]